[Event "Titled Tuesday Blitz February 01 B 2022"]
[White "Timofeev, Artyom"]
[Black "Golubka, Petro"]
[WhiteFideId "4140419"]
[BlackFideId "14114224"]
[WhiteElo "2583"]
[BlackElo "2392"]
[Result "1/2-1/2"]
[Round "04"]
[TimeControl "180+1"]
[Date "2022.02.01"]
[WhiteClock "0:01:16"]
[BlackClock "0:01:50"]

1. d4 {[%clk 0:03:00]}  d5 {[%clk 0:02:58]} 2. c4 {[%clk 0:03:00]}  e6 {[%clk 0:02:58]} 3. Nc3 {[%clk 0:03:00]}  Be7 {[%clk 0:02:59]} 4. Nf3 {[%clk 0:02:55]}  Nf6 {[%clk 0:02:59]} 5. Bf4 {[%clk 0:02:53]}  O-O {[%clk 0:02:57]} 6. e3 {[%clk 0:02:53]}  c5 {[%clk 0:02:56]} 7. cxd5 {[%clk 0:02:52]}  Nxd5 {[%clk 0:02:55]} 8. Nxd5 {[%clk 0:02:53]}  exd5 {[%clk 0:02:56]} 9. Be2 {[%clk 0:02:51]}  Nc6 {[%clk 0:02:51]} 10. O-O {[%clk 0:02:49]}  Bg4 {[%clk 0:02:50]} 11. dxc5 {[%clk 0:02:47]}  Bxc5 {[%clk 0:02:51]} 12. Rc1 {[%clk 0:02:46]}  Bb6 {[%clk 0:02:50]} 13. Ne5 {[%clk 0:02:44]}  Bxe2 {[%clk 0:02:50]} 14. Qxe2 {[%clk 0:02:44]}  Rc8 {[%clk 0:02:48]} 15. Rfd1 {[%clk 0:02:40]}  Nxe5 {[%clk 0:02:47]} 16. Bxe5 {[%clk 0:02:40]}  Rxc1 {[%clk 0:02:47]} 17. Rxc1 {[%clk 0:02:41]}  Re8 {[%clk 0:02:47]} 18. Qg4 {[%clk 0:02:33]}  Rxe5 {[%clk 0:02:46]} 19. Rc8 {[%clk 0:02:32]}  Re8 {[%clk 0:02:46]} 20. Rxd8 {[%clk 0:02:31]}  Rxd8 {[%clk 0:02:47]} 21. h4 {[%clk 0:02:19]}  g6 {[%clk 0:02:46]} 22. h5 {[%clk 0:02:19]}  d4 {[%clk 0:02:45]} 23. exd4 {[%clk 0:02:18]}  Rxd4 {[%clk 0:02:45]} 24. Qc8+ {[%clk 0:02:18]}  Kg7 {[%clk 0:02:44]} 25. Qxb7 {[%clk 0:02:18]}  Rd2 {[%clk 0:02:43]} 26. b4 {[%clk 0:02:05]}  Rxa2 {[%clk 0:02:37]} 27. Kh2 {[%clk 0:01:57]}  Rxf2 {[%clk 0:02:31]} 28. hxg6 {[%clk 0:01:53]}  hxg6 {[%clk 0:02:32]} 29. Qe4 {[%clk 0:01:49]}  Rf5 {[%clk 0:02:31]} 30. g4 {[%clk 0:01:48]}  Rf2+ {[%clk 0:02:31]} 31. Kg3 {[%clk 0:01:47]}  g5 {[%clk 0:02:32]} 32. Qe5+ {[%clk 0:01:46]}  Kg6 {[%clk 0:02:30]} 33. Qe4+ {[%clk 0:01:46]}  Kh6 {[%clk 0:02:29]} 34. Qc6+ {[%clk 0:01:44]}  Kg7 {[%clk 0:02:27]} 35. Qc3+ {[%clk 0:01:43]}  Rf6 {[%clk 0:02:24]} 36. Qe5 {[%clk 0:01:40]}  Kg6 {[%clk 0:02:24]} 37. Qe4+ {[%clk 0:01:40]}  Kh6 {[%clk 0:02:23]} 38. Qe5 {[%clk 0:01:39]}  Re6 {[%clk 0:02:09]} 39. Qh8+ {[%clk 0:01:39]}  Kg6 {[%clk 0:02:10]} 40. Qg8+ {[%clk 0:01:39]}  Kf6 {[%clk 0:02:10]} 41. Qh8+ {[%clk 0:01:39]}  Ke7 {[%clk 0:02:10]} 42. b5 {[%clk 0:01:24]}  Bc7+ {[%clk 0:02:07]} 43. Kf3 {[%clk 0:01:20]}  Bb6 {[%clk 0:02:01]} 44. Qg7 {[%clk 0:01:18]}  Be3 {[%clk 0:01:59]} 45. Qc3 {[%clk 0:01:15]}  Bb6 {[%clk 0:01:56]} 46. Qg7 {[%clk 0:01:15]}  Rg6 {[%clk 0:01:50]} 47. Qe5+ {[%clk 0:01:15]}  Kf8 {[%clk 0:01:50]} 48. Qh8+ {[%clk 0:01:15]}  Ke7 {[%clk 0:01:49]} 49. Qe5+ {[%clk 0:01:16]}  Kd7 {[%clk 0:01:49]} 50. Qf5+ {[%clk 0:01:16]}  Ke7 {[%clk 0:01:50]} 51. Qe5+ {[%clk 0:01:16]} 1/2-1/2


[Site "https://www.chess.com"]

[Event "Titled Tuesday Blitz February 01 B 2022"]
[White "Van Foreest, Jorden"]
[Black "Kobalia, Mikhail"]
[WhiteFideId "1039784"]
[BlackFideId "4119150"]
[WhiteElo "2609"]
[BlackElo "2667"]
[Result "1-0"]
[Round "04"]
[TimeControl "180+1"]
[Date "2022.02.01"]
[WhiteClock "0:01:15"]
[BlackClock "0:00:11"]

1. Nf3 {[%clk 0:02:54]}  d5 {[%clk 0:02:59]} 2. c4 {[%clk 0:02:53]}  c6 {[%clk 0:02:59]} 3. e3 {[%clk 0:02:49]}  Nf6 {[%clk 0:02:59]} 4. b3 {[%clk 0:02:47]}  e6 {[%clk 0:02:59]} 5. Bb2 {[%clk 0:02:48]}  Bd6 {[%clk 0:02:59]} 6. Nc3 {[%clk 0:02:45]}  O-O {[%clk 0:02:59]} 7. Qc2 {[%clk 0:02:41]}  Nbd7 {[%clk 0:02:57]} 8. g4 {[%clk 0:02:37]}  Nc5 {[%clk 0:02:47]} 9. g5 {[%clk 0:02:33]}  Nfe4 {[%clk 0:02:47]} 10. d3 {[%clk 0:02:30]}  Nxg5 {[%clk 0:02:38]} 11. Nxg5 {[%clk 0:02:31]}  Qxg5 {[%clk 0:02:37]} 12. h4 {[%clk 0:02:28]}  Qe7 {[%clk 0:02:31]} 13. Rg1 {[%clk 0:02:27]}  f6 {[%clk 0:02:26]} 14. d4 {[%clk 0:02:25]}  Ne4 {[%clk 0:02:21]} 15. Nxe4 {[%clk 0:02:24]}  dxe4 {[%clk 0:02:21]} 16. Qxe4 {[%clk 0:02:25]}  Bb4+ {[%clk 0:02:21]} 17. Kd1 {[%clk 0:02:24]}  f5 {[%clk 0:02:09]} 18. Qf3 {[%clk 0:02:22]}  e5 {[%clk 0:02:06]} 19. Kc2 {[%clk 0:02:19]}  Ba3 {[%clk 0:01:58]} 20. Bxa3 {[%clk 0:02:17]}  Qxa3 {[%clk 0:01:57]} 21. Qg3 {[%clk 0:02:17]}  Qe7 {[%clk 0:01:51]} 22. Qxe5 {[%clk 0:02:17]}  Qxe5 {[%clk 0:01:50]} 23. dxe5 {[%clk 0:02:18]}  f4 {[%clk 0:01:50]} 24. e4 {[%clk 0:02:17]}  Rd8 {[%clk 0:00:58]} 25. Be2 {[%clk 0:02:07]}  Be6 {[%clk 0:00:55]} 26. Bg4 {[%clk 0:02:07]}  Bxg4 {[%clk 0:00:50]} 27. Rxg4 {[%clk 0:02:06]}  Rd4 {[%clk 0:00:50]} 28. Rag1 {[%clk 0:01:56]}  g6 {[%clk 0:00:46]} 29. Rxf4 {[%clk 0:01:51]}  Rad8 {[%clk 0:00:43]} 30. Kb2 {[%clk 0:01:47]}  Rd2+ {[%clk 0:00:42]} 31. Ka3 {[%clk 0:01:47]}  Re2 {[%clk 0:00:41]} 32. e6 {[%clk 0:01:47]}  Re8 {[%clk 0:00:35]} 33. Rd1 {[%clk 0:01:48]}  Rxe6 {[%clk 0:00:31]} 34. Rd8+ {[%clk 0:01:47]}  Kg7 {[%clk 0:00:30]} 35. Rd7+ {[%clk 0:01:48]}  Kh6 {[%clk 0:00:26]} 36. Rxb7 {[%clk 0:01:46]}  R6xe4 {[%clk 0:00:19]} 37. Rff7 {[%clk 0:01:43]}  Rxh4 {[%clk 0:00:19]} 38. Rxh7+ {[%clk 0:01:39]}  Kg5 {[%clk 0:00:19]} 39. Rxh4 {[%clk 0:01:38]}  Kxh4 {[%clk 0:00:20]} 40. Rh7+ {[%clk 0:01:21]}  Kg4 {[%clk 0:00:19]} 41. Rxa7 {[%clk 0:01:19]}  Rxf2 {[%clk 0:00:18]} 42. Kb4 {[%clk 0:01:18]}  g5 {[%clk 0:00:17]} 43. a4 {[%clk 0:01:19]}  Kh3 {[%clk 0:00:14]} 44. Rh7+ {[%clk 0:01:18]}  Kg3 {[%clk 0:00:13]} 45. Kc5 {[%clk 0:01:17]}  Rb2 {[%clk 0:00:11]} 46. b4 {[%clk 0:01:17]}  g4 {[%clk 0:00:12]} 47. a5 {[%clk 0:01:17]}  Kf3 {[%clk 0:00:11]} 48. Rf7+ {[%clk 0:01:17]}  Ke3 {[%clk 0:00:11]} 49. Rg7 {[%clk 0:01:17]}  Kf3 {[%clk 0:00:11]} 50. a6 {[%clk 0:01:17]}  Ra2 {[%clk 0:00:10]} 51. a7 {[%clk 0:01:16]}  g3 {[%clk 0:00:10]} 52. Kxc6 {[%clk 0:01:16]}  g2 {[%clk 0:00:11]} 53. Kb7 {[%clk 0:01:15]} 1-0


[Site "https://www.chess.com"]

[Event "Titled Tuesday Blitz February 01 B 2022"]
[White "Warmerdam, Max"]
[Black "Lopez Mulet, Inigo"]
[WhiteFideId "1048104"]
[BlackFideId "22235620"]
[WhiteElo "2537"]
[BlackElo "2315"]
[Result "1-0"]
[Round "04"]
[TimeControl "180+1"]
[Date "2022.02.01"]
[WhiteClock "0:01:43"]
[BlackClock "0:00:15"]

1. d4 {[%clk 0:03:00]}  Nf6 {[%clk 0:02:53]} 2. c4 {[%clk 0:03:01]}  c5 {[%clk 0:02:52]} 3. d5 {[%clk 0:03:01]}  b5 {[%clk 0:02:52]} 4. cxb5 {[%clk 0:03:02]}  a6 {[%clk 0:02:53]} 5. bxa6 {[%clk 0:03:03]}  g6 {[%clk 0:02:52]} 6. Nc3 {[%clk 0:03:04]}  Bg7 {[%clk 0:02:53]} 7. g3 {[%clk 0:03:01]}  O-O {[%clk 0:02:50]} 8. Bg2 {[%clk 0:03:02]}  d6 {[%clk 0:02:48]} 9. Nf3 {[%clk 0:03:02]}  Qa5 {[%clk 0:02:45]} 10. O-O {[%clk 0:03:02]}  Bxa6 {[%clk 0:02:43]} 11. Qc2 {[%clk 0:03:01]}  Nbd7 {[%clk 0:02:40]} 12. Rd1 {[%clk 0:03:00]}  Rfb8 {[%clk 0:02:40]} 13. Bd2 {[%clk 0:02:56]}  Nb6 {[%clk 0:02:27]} 14. b3 {[%clk 0:02:46]}  Qb4 {[%clk 0:02:20]} 15. a3 {[%clk 0:02:40]}  Qg4 {[%clk 0:02:17]} 16. h3 {[%clk 0:02:40]}  Qc8 {[%clk 0:02:10]} 17. e4 {[%clk 0:02:38]}  Nfd7 {[%clk 0:02:07]} 18. Rab1 {[%clk 0:02:37]}  Rb7 {[%clk 0:02:03]} 19. Bg5 {[%clk 0:02:35]}  Kf8 {[%clk 0:02:02]} 20. a4 {[%clk 0:02:34]}  h6 {[%clk 0:02:01]} 21. Bf4 {[%clk 0:02:33]}  Rab8 {[%clk 0:01:56]} 22. Re1 {[%clk 0:02:32]}  Qc7 {[%clk 0:01:49]} 23. h4 {[%clk 0:02:30]}  Nc8 {[%clk 0:01:47]} 24. Bh3 {[%clk 0:02:15]}  Ne5 {[%clk 0:01:39]} 25. Bxe5 {[%clk 0:02:11]}  dxe5 {[%clk 0:01:38]} 26. Bxc8 {[%clk 0:02:12]}  Qxc8 {[%clk 0:01:37]} 27. Nd2 {[%clk 0:02:12]}  Qg4 {[%clk 0:01:34]} 28. Nc4 {[%clk 0:02:12]}  Rb4 {[%clk 0:01:32]} 29. Na2 {[%clk 0:02:08]}  R4b7 {[%clk 0:01:28]} 30. Kg2 {[%clk 0:02:08]}  g5 {[%clk 0:01:25]} 31. f3 {[%clk 0:02:07]}  Qh5 {[%clk 0:01:23]} 32. g4 {[%clk 0:02:08]}  Qg6 {[%clk 0:01:24]} 33. h5 {[%clk 0:02:08]}  Qf6 {[%clk 0:01:23]} 34. Nc3 {[%clk 0:02:05]}  Rb4 {[%clk 0:01:19]} 35. Na2 {[%clk 0:01:59]}  R4b7 {[%clk 0:01:18]} 36. Na5 {[%clk 0:01:58]}  Rc7 {[%clk 0:01:06]} 37. Nc3 {[%clk 0:01:57]}  Qb6 {[%clk 0:01:03]} 38. Nc4 {[%clk 0:01:57]}  Qa7 {[%clk 0:01:02]} 39. Red1 {[%clk 0:01:54]}  Rcb7 {[%clk 0:00:52]} 40. Na5 {[%clk 0:01:54]}  Rc7 {[%clk 0:00:47]} 41. Nc6 {[%clk 0:01:53]}  Rxc6 {[%clk 0:00:46]} 42. dxc6 {[%clk 0:01:54]}  Qc7 {[%clk 0:00:46]} 43. Nd5 {[%clk 0:01:49]}  Qxc6 {[%clk 0:00:46]} 44. Rdc1 {[%clk 0:01:49]}  e6 {[%clk 0:00:39]} 45. Ne3 {[%clk 0:01:49]}  c4 {[%clk 0:00:24]} 46. Nxc4 {[%clk 0:01:47]}  Kg8 {[%clk 0:00:24]} 47. b4 {[%clk 0:01:44]}  Bxc4 {[%clk 0:00:22]} 48. Qxc4 {[%clk 0:01:45]}  Qxa4 {[%clk 0:00:23]} 49. b5 {[%clk 0:01:45]}  Qa5 {[%clk 0:00:23]} 50. Qc3 {[%clk 0:01:43]}  Qb6 {[%clk 0:00:17]} 51. Qc7 {[%clk 0:01:42]}  Bf8 {[%clk 0:00:15]} 52. Qxb6 {[%clk 0:01:42]}  Rxb6 {[%clk 0:00:16]} 53. Rc6 {[%clk 0:01:43]}  Rb7 {[%clk 0:00:16]} 54. b6 {[%clk 0:01:43]}  Be7 {[%clk 0:00:15]} 55. Rc7 {[%clk 0:01:43]} 1-0


[Site "https://www.chess.com"]

[Event "Titled Tuesday Blitz February 01 B 2022"]
[White "Zhigalko, Sergei"]
[Black "Martinez Alcantara, Jose Eduardo"]
[WhiteFideId "13502956"]
[BlackFideId "3805662"]
[WhiteElo "2662"]
[BlackElo "2690"]
[Result "0-1"]
[Round "04"]
[TimeControl "180+1"]
[Date "2022.02.01"]
[WhiteClock "0:00:01"]
[BlackClock "0:00:06"]

1. e4 {[%clk 0:03:00]}  e5 {[%clk 0:02:58]} 2. Nf3 {[%clk 0:03:01]}  Nc6 {[%clk 0:02:58]} 3. Bc4 {[%clk 0:03:00]}  Bc5 {[%clk 0:02:58]} 4. b4 {[%clk 0:03:00]}  Bxb4 {[%clk 0:02:58]} 5. c3 {[%clk 0:03:00]}  Be7 {[%clk 0:02:57]} 6. d4 {[%clk 0:02:58]}  Na5 {[%clk 0:02:54]} 7. Bd3 {[%clk 0:02:57]}  d6 {[%clk 0:02:53]} 8. dxe5 {[%clk 0:02:58]}  dxe5 {[%clk 0:02:53]} 9. Nxe5 {[%clk 0:02:59]}  Nf6 {[%clk 0:02:49]} 10. O-O {[%clk 0:02:59]}  O-O {[%clk 0:02:46]} 11. Qc2 {[%clk 0:02:59]}  c5 {[%clk 0:02:40]} 12. Nd2 {[%clk 0:02:59]}  Qc7 {[%clk 0:02:33]} 13. f4 {[%clk 0:02:52]}  Ng4 {[%clk 0:02:15]} 14. Nxg4 {[%clk 0:02:10]}  Bxg4 {[%clk 0:02:16]} 15. e5 {[%clk 0:02:11]}  h6 {[%clk 0:01:56]} 16. Ne4 {[%clk 0:01:48]}  Rad8 {[%clk 0:01:36]} 17. Be3 {[%clk 0:01:43]}  c4 {[%clk 0:01:07]} 18. Be2 {[%clk 0:01:43]}  Bxe2 {[%clk 0:01:07]} 19. Qxe2 {[%clk 0:01:44]}  Rd3 {[%clk 0:01:07]} 20. Rae1 {[%clk 0:01:22]}  Rfd8 {[%clk 0:01:06]} 21. Kh1 {[%clk 0:01:16]}  Nc6 {[%clk 0:00:48]} 22. Qh5 {[%clk 0:00:59]}  R8d5 {[%clk 0:00:41]} 23. Rf3 {[%clk 0:00:34]}  Kf8 {[%clk 0:00:33]} 24. Rg3 {[%clk 0:00:26]}  Qd7 {[%clk 0:00:32]} 25. Bg1 {[%clk 0:00:17]}  Rxg3 {[%clk 0:00:31]} 26. hxg3 {[%clk 0:00:17]}  b5 {[%clk 0:00:23]} 27. g4 {[%clk 0:00:06]}  Kg8 {[%clk 0:00:23]} 28. g5 {[%clk 0:00:05]}  hxg5 {[%clk 0:00:24]} 29. Nxg5 {[%clk 0:00:05]}  Bxg5 {[%clk 0:00:24]} 30. Qxg5 {[%clk 0:00:06]}  a5 {[%clk 0:00:20]} 31. Re3 {[%clk 0:00:05]}  Rd3 {[%clk 0:00:19]} 32. Rg3 {[%clk 0:00:02]}  Rxg3 {[%clk 0:00:19]} 33. Qxg3 {[%clk 0:00:03]}  Ne7 {[%clk 0:00:18]} 34. Qf3 {[%clk 0:00:03]}  Qd5 {[%clk 0:00:18]} 35. Qg4 {[%clk 0:00:02]}  g6 {[%clk 0:00:15]} 36. Bd4 {[%clk 0:00:02]}  Nf5 {[%clk 0:00:16]} 37. e6 {[%clk 0:00:02]}  Qxe6 {[%clk 0:00:08]} 38. Be5 {[%clk 0:00:02]}  Ng7 {[%clk 0:00:07]} 39. Qh4 {[%clk 0:00:02]}  b4 {[%clk 0:00:02]} 40. Qd8+ {[%clk 0:00:02]}  Ne8 {[%clk 0:00:03]} 41. cxb4 {[%clk 0:00:02]}  axb4 {[%clk 0:00:03]} 42. Qb8 {[%clk 0:00:02]}  c3 {[%clk 0:00:03]} 43. Qxb4 {[%clk 0:00:02]}  c2 {[%clk 0:00:04]} 44. Qc3 {[%clk 0:00:01]}  Qxa2 {[%clk 0:00:04]} 45. Kh2 {[%clk 0:00:01]}  Qa4 {[%clk 0:00:04]} 46. Qh3 {[%clk 0:00:01]}  f6 {[%clk 0:00:04]} 47. Qe6+ {[%clk 0:00:02]}  Kf8 {[%clk 0:00:03]} 48. Bxf6 {[%clk 0:00:02]}  Qxf4+ {[%clk 0:00:04]} 49. g3 {[%clk 0:00:02]}  Qf2+ {[%clk 0:00:03]} 50. Kh1 {[%clk 0:00:01]}  Qxf6 {[%clk 0:00:04]} 51. Qc4 {[%clk 0:00:02]}  Qd6 {[%clk 0:00:03]} 52. Qxc2 {[%clk 0:00:01]}  Kg7 {[%clk 0:00:04]} 53. Qc3+ {[%clk 0:00:02]}  Nf6 {[%clk 0:00:04]} 54. Kg2 {[%clk 0:00:02]}  Qd5+ {[%clk 0:00:05]} 55. Kh3 {[%clk 0:00:02]}  g5 {[%clk 0:00:06]} 56. Qb2 {[%clk 0:00:02]}  Qh1+ {[%clk 0:00:06]} 57. Qh2 {[%clk 0:00:01]}  g4+ {[%clk 0:00:06]} 0-1


[Site "https://www.chess.com"]

[Event "Titled Tuesday Blitz February 01 B 2022"]
[White "Abdrlauf, Elham"]
[Black "Bluebaum, Matthias"]
[WhiteFideId "1533533"]
[BlackFideId "24651516"]
[WhiteElo "2334"]
[BlackElo "2550"]
[Result "1-0"]
[Round "05"]
[TimeControl "180+1"]
[Date "2022.02.01"]
[WhiteClock "0:00:21"]
[BlackClock "0:00:33"]

1. e4 {[%clk 0:02:38]}  c6 {[%clk 0:03:00]} 2. d4 {[%clk 0:02:38]}  d5 {[%clk 0:03:01]} 3. Nc3 {[%clk 0:02:38]}  dxe4 {[%clk 0:03:00]} 4. Nxe4 {[%clk 0:02:39]}  Nf6 {[%clk 0:03:01]} 5. Nxf6+ {[%clk 0:02:40]}  exf6 {[%clk 0:03:02]} 6. c3 {[%clk 0:02:40]}  Bf5 {[%clk 0:03:02]} 7. Bd3 {[%clk 0:02:41]}  Bxd3 {[%clk 0:03:02]} 8. Qxd3 {[%clk 0:02:40]}  Na6 {[%clk 0:03:03]} 9. Ne2 {[%clk 0:02:41]}  Nc7 {[%clk 0:03:02]} 10. O-O {[%clk 0:02:41]}  Ne6 {[%clk 0:03:03]} 11. Be3 {[%clk 0:02:37]}  g6 {[%clk 0:02:58]} 12. c4 {[%clk 0:02:36]}  Bg7 {[%clk 0:02:54]} 13. Rad1 {[%clk 0:02:30]}  O-O {[%clk 0:02:53]} 14. d5 {[%clk 0:02:29]}  cxd5 {[%clk 0:02:53]} 15. cxd5 {[%clk 0:02:29]}  Nc7 {[%clk 0:02:50]} 16. d6 {[%clk 0:02:25]}  Ne6 {[%clk 0:02:50]} 17. d7 {[%clk 0:02:21]}  Qe7 {[%clk 0:02:46]} 18. Nc3 {[%clk 0:02:21]}  Rfd8 {[%clk 0:02:31]} 19. Nd5 {[%clk 0:02:19]}  Qf8 {[%clk 0:02:31]} 20. Qb5 {[%clk 0:02:10]}  b6 {[%clk 0:02:20]} 21. Nf4 {[%clk 0:01:41]}  Nc5 {[%clk 0:01:38]} 22. Bxc5 {[%clk 0:01:16]}  Qxc5 {[%clk 0:01:38]} 23. Qxc5 {[%clk 0:01:16]}  bxc5 {[%clk 0:01:39]} 24. Nd5 {[%clk 0:01:05]}  Kf8 {[%clk 0:01:30]} 25. Nc7 {[%clk 0:01:06]}  Rab8 {[%clk 0:01:30]} 26. Rfe1 {[%clk 0:01:06]}  f5 {[%clk 0:00:44]} 27. Re8+ {[%clk 0:00:54]}  Rxe8 {[%clk 0:00:44]} 28. dxe8=Q+ {[%clk 0:00:55]}  Rxe8 {[%clk 0:00:44]} 29. Nxe8 {[%clk 0:00:56]}  Kxe8 {[%clk 0:00:45]} 30. b3 {[%clk 0:00:55]}  Ke7 {[%clk 0:00:41]} 31. Rd5 {[%clk 0:00:45]}  Bd4 {[%clk 0:00:41]} 32. Kf1 {[%clk 0:00:42]}  Ke6 {[%clk 0:00:39]} 33. Rd8 {[%clk 0:00:42]}  a5 {[%clk 0:00:37]} 34. Ke2 {[%clk 0:00:36]}  h5 {[%clk 0:00:37]} 35. Rb8 {[%clk 0:00:24]}  Bc3 {[%clk 0:00:35]} 36. Kd3 {[%clk 0:00:24]}  Be1 {[%clk 0:00:34]} 37. f3 {[%clk 0:00:23]}  Kd5 {[%clk 0:00:32]} 38. Rd8+ {[%clk 0:00:21]}  Kc6 {[%clk 0:00:33]} 39. Kc4 {[%clk 0:00:21]} 1-0


[Site "https://www.chess.com"]

[Event "Titled Tuesday Blitz February 01 B 2022"]
[White "Blohberger, Felix"]
[Black "Kollars, Dmitrij"]
[WhiteFideId "1632051"]
[BlackFideId "12909572"]
[WhiteElo "2474"]
[BlackElo "2584"]
[Result "1/2-1/2"]
[Round "05"]
[TimeControl "180+1"]
[Date "2022.02.01"]
[WhiteClock "0:00:10"]
[BlackClock "0:00:06"]

1. d4 {[%clk 0:03:00]}  Nf6 {[%clk 0:02:59]} 2. Nf3 {[%clk 0:02:59]}  d5 {[%clk 0:02:58]} 3. Bf4 {[%clk 0:02:58]}  c5 {[%clk 0:02:56]} 4. e3 {[%clk 0:02:58]}  Nc6 {[%clk 0:02:50]} 5. Nbd2 {[%clk 0:02:59]}  Bg4 {[%clk 0:02:50]} 6. c3 {[%clk 0:02:58]}  e6 {[%clk 0:02:49]} 7. Qa4 {[%clk 0:02:59]}  Nd7 {[%clk 0:02:39]} 8. Ne5 {[%clk 0:02:52]}  Ndxe5 {[%clk 0:02:37]} 9. Bxe5 {[%clk 0:02:49]}  c4 {[%clk 0:02:09]} 10. h3 {[%clk 0:02:40]}  Bh5 {[%clk 0:01:57]} 11. e4 {[%clk 0:02:36]}  Qd7 {[%clk 0:01:54]} 12. Bg3 {[%clk 0:02:31]}  a6 {[%clk 0:01:50]} 13. Qc2 {[%clk 0:02:25]}  Be7 {[%clk 0:01:49]} 14. Be2 {[%clk 0:02:13]}  Bxe2 {[%clk 0:01:48]} 15. Kxe2 {[%clk 0:02:13]}  O-O {[%clk 0:01:49]} 16. Rhe1 {[%clk 0:02:07]}  b5 {[%clk 0:01:32]} 17. Kf1 {[%clk 0:02:06]}  a5 {[%clk 0:01:30]} 18. Kg1 {[%clk 0:01:59]}  Rfc8 {[%clk 0:01:23]} 19. Nf3 {[%clk 0:01:55]}  b4 {[%clk 0:01:22]} 20. exd5 {[%clk 0:01:47]}  exd5 {[%clk 0:01:23]} 21. Ne5 {[%clk 0:01:46]}  Nxe5 {[%clk 0:01:22]} 22. Rxe5 {[%clk 0:01:44]}  f6 {[%clk 0:01:07]} 23. Re2 {[%clk 0:01:37]}  a4 {[%clk 0:01:07]} 24. cxb4 {[%clk 0:01:04]}  Bxb4 {[%clk 0:01:08]} 25. Rd1 {[%clk 0:00:53]}  a3 {[%clk 0:01:03]} 26. b3 {[%clk 0:00:53]}  Bf8 {[%clk 0:00:43]} 27. bxc4 {[%clk 0:00:51]}  Rxc4 {[%clk 0:00:44]} 28. Qb3 {[%clk 0:00:52]}  Rac8 {[%clk 0:00:43]} 29. Kh2 {[%clk 0:00:50]}  Rc3 {[%clk 0:00:42]} 30. Qb1 {[%clk 0:00:49]}  Qc6 {[%clk 0:00:24]} 31. Qf5 {[%clk 0:00:36]}  g6 {[%clk 0:00:24]} 32. Qb1 {[%clk 0:00:33]}  Rc2 {[%clk 0:00:22]} 33. Rdd2 {[%clk 0:00:28]}  Rxd2 {[%clk 0:00:22]} 34. Rxd2 {[%clk 0:00:28]}  Qc1 {[%clk 0:00:20]} 35. Qb6 {[%clk 0:00:18]}  Qxd2 {[%clk 0:00:14]} 36. Qe6+ {[%clk 0:00:17]}  Kg7 {[%clk 0:00:12]} 37. Qd7+ {[%clk 0:00:18]}  Kg8 {[%clk 0:00:09]} 38. Qe6+ {[%clk 0:00:17]}  Kg7 {[%clk 0:00:09]} 39. Qd7+ {[%clk 0:00:17]}  Kg8 {[%clk 0:00:06]} 40. Qe6+ {[%clk 0:00:10]} 1/2-1/2


[Site "https://www.chess.com"]

[Event "Titled Tuesday Blitz February 01 B 2022"]
[White "Bok, Benjamin"]
[Black "Hakobyan, Aram"]
[WhiteFideId "1017063"]
[BlackFideId "13306677"]
[WhiteElo "2658"]
[BlackElo "2557"]
[Result "1/2-1/2"]
[Round "05"]
[TimeControl "180+1"]
[Date "2022.02.01"]
[WhiteClock "0:00:14"]
[BlackClock "0:00:05"]

1. d4 {[%clk 0:03:00]}  d5 {[%clk 0:02:57]} 2. c4 {[%clk 0:03:01]}  dxc4 {[%clk 0:02:58]} 3. Nf3 {[%clk 0:03:01]}  Nf6 {[%clk 0:02:58]} 4. e3 {[%clk 0:03:01]}  e6 {[%clk 0:02:59]} 5. Bxc4 {[%clk 0:03:02]}  a6 {[%clk 0:03:00]} 6. O-O {[%clk 0:03:02]}  c5 {[%clk 0:03:00]} 7. b3 {[%clk 0:03:02]}  Nbd7 {[%clk 0:02:59]} 8. Bb2 {[%clk 0:03:01]}  Be7 {[%clk 0:02:59]} 9. dxc5 {[%clk 0:02:58]}  Bxc5 {[%clk 0:02:59]} 10. Nbd2 {[%clk 0:02:57]}  O-O {[%clk 0:02:58]} 11. Bd3 {[%clk 0:02:57]}  b6 {[%clk 0:02:56]} 12. Ne4 {[%clk 0:02:52]}  Be7 {[%clk 0:02:52]} 13. Qc2 {[%clk 0:02:48]}  Bb7 {[%clk 0:02:26]} 14. Nxf6+ {[%clk 0:02:35]}  Bxf6 {[%clk 0:02:11]} 15. Bxh7+ {[%clk 0:01:47]}  Kh8 {[%clk 0:02:10]} 16. Bxf6 {[%clk 0:01:41]}  Nxf6 {[%clk 0:02:10]} 17. Rad1 {[%clk 0:01:26]}  Qe7 {[%clk 0:01:57]} 18. Bd3 {[%clk 0:01:25]}  Bxf3 {[%clk 0:01:55]} 19. gxf3 {[%clk 0:01:26]}  Rac8 {[%clk 0:01:52]} 20. Qe2 {[%clk 0:01:25]}  Nd5 {[%clk 0:01:50]} 21. f4 {[%clk 0:01:23]}  g6 {[%clk 0:01:50]} 22. Rc1 {[%clk 0:01:07]}  a5 {[%clk 0:01:43]} 23. Qb2+ {[%clk 0:01:06]}  Kg8 {[%clk 0:01:41]} 24. Be4 {[%clk 0:01:06]}  Nf6 {[%clk 0:01:39]} 25. Bf3 {[%clk 0:01:06]}  Kg7 {[%clk 0:01:35]} 26. Rxc8 {[%clk 0:01:04]}  Rxc8 {[%clk 0:01:36]} 27. Rc1 {[%clk 0:01:04]}  Rxc1+ {[%clk 0:01:24]} 28. Qxc1 {[%clk 0:01:05]}  e5 {[%clk 0:01:12]} 29. fxe5 {[%clk 0:01:02]}  Qxe5 {[%clk 0:01:13]} 30. Qc6 {[%clk 0:00:56]}  Qg5+ {[%clk 0:01:08]} 31. Kf1 {[%clk 0:00:56]}  Qf5 {[%clk 0:01:08]} 32. Kg2 {[%clk 0:00:38]}  Qg5+ {[%clk 0:01:07]} 33. Kh1 {[%clk 0:00:37]}  b5 {[%clk 0:01:07]} 34. Qc3 {[%clk 0:00:29]}  Qf5 {[%clk 0:01:01]} 35. Kg2 {[%clk 0:00:27]}  Qg5+ {[%clk 0:01:01]} 36. Kf1 {[%clk 0:00:27]}  Qf5 {[%clk 0:00:59]} 37. Be2 {[%clk 0:00:17]}  Qb1+ {[%clk 0:00:52]} 38. Kg2 {[%clk 0:00:16]}  b4 {[%clk 0:00:52]} 39. Qd4 {[%clk 0:00:15]}  Qxa2 {[%clk 0:00:34]} 40. Bc4 {[%clk 0:00:15]}  Qc2 {[%clk 0:00:35]} 41. Qa7 {[%clk 0:00:13]}  Qe4+ {[%clk 0:00:34]} 42. Kg1 {[%clk 0:00:13]}  Qg4+ {[%clk 0:00:19]} 43. Kf1 {[%clk 0:00:13]}  Qd1+ {[%clk 0:00:19]} 44. Kg2 {[%clk 0:00:14]}  Nd7 {[%clk 0:00:20]} 45. Qxa5 {[%clk 0:00:12]}  Qg4+ {[%clk 0:00:20]} 46. Kf1 {[%clk 0:00:13]}  Qd1+ {[%clk 0:00:12]} 47. Kg2 {[%clk 0:00:13]}  Qg4+ {[%clk 0:00:07]} 48. Kf1 {[%clk 0:00:13]}  Qd1+ {[%clk 0:00:05]} 49. Kg2 {[%clk 0:00:14]} 1/2-1/2


[Site "https://www.chess.com"]